[Event "Late-Titled-Tuesday-Blitz-October-17-2023"]
[Site "Chess.com"]
[Date "2023.10.17"]
[Round "6"]
[White "C_K_G"]
[Black "ChessSwole"]
[Result "0-1"]
[WhiteElo "1892"]
[BlackElo "2750"]
[TimeControl "180+1"]
[EndTime "15:06:12 PDT"]
[Termination "ChessSwole won on time"]

1. e4 {[%clk 0:03:00.9]} 1... c5 {[%clk 0:02:58.7]} 2. Nf3 {[%clk 0:03:00.7]}
2... d6 {[%clk 0:02:58.6]} 3. d4 {[%clk 0:03:01.3]} 3... cxd4 {[%clk 0:02:58.9]}
4. Nxd4 {[%clk 0:03:02]} 4... Nf6 {[%clk 0:02:59.3]} 5. Nc3 {[%clk 0:03:02.5]}
5... a6 {[%clk 0:02:59.9]} 6. Be2 {[%clk 0:03:02.9]} 6... e5 {[%clk 0:02:57.6]}
7. Nb3 {[%clk 0:03:03.1]} 7... Be7 {[%clk 0:02:57.9]} 8. Be3 {[%clk 0:03:03.8]}
8... Be6 {[%clk 0:02:54.8]} 9. O-O {[%clk 0:03:04.2]} 9... O-O {[%clk
0:02:52.2]} 10. a4 {[%clk 0:03:02.7]} 10... Nbd7 {[%clk 0:02:50.6]} 11. a5
{[%clk 0:03:02.3]} 11... Qc7 {[%clk 0:02:48.9]} 12. f4 {[%clk 0:02:54.8]} 12...
Rfc8 {[%clk 0:02:43.9]} 13. f5 {[%clk 0:02:51.6]} 13... Bc4 {[%clk 0:02:43.5]}
14. Bxc4 {[%clk 0:02:39.3]} 14... Qxc4 {[%clk 0:02:44.4]} 15. Ra4 {[%clk
0:02:39.6]} 15... Qc7 {[%clk 0:02:36.3]} 16. g4 {[%clk 0:02:26.3]} 16... b5
{[%clk 0:02:33]} 17. axb6 {[%clk 0:02:25.1]} 17... Nxb6 {[%clk 0:02:33]} 18. Ra2
{[%clk 0:01:30.6]} 18... Nc4 {[%clk 0:02:30.6]} 19. Bc1 {[%clk 0:01:21]} 19...
h6 {[%clk 0:02:28.2]} 20. Qf3 {[%clk 0:01:15.6]} 20... a5 {[%clk 0:02:17.5]} 21.
h4 {[%clk 0:01:11.5]} 21... a4 {[%clk 0:02:08.4]} 22. Nxa4 {[%clk 0:00:57.8]}
22... Qc6 {[%clk 0:02:05]} 23. g5 {[%clk 0:00:20.5]} 23... Rxa4 {[%clk
0:01:55.9]} 24. Rxa4 {[%clk 0:00:19.6]} 24... Qxa4 {[%clk 0:01:56.8]} 25. gxf6
{[%clk 0:00:18.8]} 25... Bxf6 {[%clk 0:01:57.7]} 26. Qg3 {[%clk 0:00:13.6]}
26... Kf8 {[%clk 0:01:43.8]} 27. Kh1 {[%clk 0:00:11.4]} 27... Qc6 {[%clk
0:01:37.9]} 28. Re1 {[%clk 0:00:09.4]} 28... Ra8 {[%clk 0:01:08.4]} 29. Kg2
{[%clk 0:00:06.8]} 29... Na5 {[%clk 0:00:37.9]} 30. Nxa5 {[%clk 0:00:05.2]}
30... Qxc2+ {[%clk 0:00:36.7]} 31. Kh3 {[%clk 0:00:03.4]} 31... Rxa5 {[%clk
0:00:35.6]} 32. Be3 {[%clk 0:00:02.6]} 32... Qxe4 {[%clk 0:00:29.1]} 33. Rc1
{[%clk 0:00:02.4]} 33... Qxf5+ {[%clk 0:00:28.1]} 0-1

[Event "Late-Titled-Tuesday-Blitz-October-17-2023"]
[Site "Chess.com"]
[Date "2023.10.17"]
[Round "6"]
[White "The_Princess_Moon"]
[Black "Aariow"]
[Result "0-1"]
[WhiteElo "2336"]
[BlackElo "2470"]
[TimeControl "180+1"]
[EndTime "15:06:21 PDT"]
[Termination "Aariow won by checkmate"]

1. e4 {[%clk 0:03:00.9]} 1... c5 {[%clk 0:02:52.7]} 2. Nf3 {[%clk 0:02:58.6]}
2... Nc6 {[%clk 0:02:52.1]} 3. Bb5 {[%clk 0:02:57.4]} 3... g6 {[%clk 0:02:52.3]}
4. Bxc6 {[%clk 0:02:57.6]} 4... dxc6 {[%clk 0:02:53.2]} 5. O-O {[%clk
0:02:57.1]} 5... Bg7 {[%clk 0:02:53.7]} 6. h3 {[%clk 0:02:57.5]} 6... e5 {[%clk
0:02:53.9]} 7. d3 {[%clk 0:02:56.4]} 7... b6 {[%clk 0:02:54.4]} 8. a4 {[%clk
0:02:53.4]} 8... a5 {[%clk 0:02:53.7]} 9. c3 {[%clk 0:02:51.5]} 9... Ba6 {[%clk
0:02:52.9]} 10. c4 {[%clk 0:02:28.8]} 10... f6 {[%clk 0:02:48.7]} 11. Nc3 {[%clk
0:02:24.7]} 11... Nh6 {[%clk 0:02:48.2]} 12. Be3 {[%clk 0:02:20.9]} 12... O-O
{[%clk 0:02:47.8]} 13. Nh2 {[%clk 0:02:13.3]} 13... Nf7 {[%clk 0:02:47.3]} 14.
f4 {[%clk 0:02:11.4]} 14... exf4 {[%clk 0:02:47.6]} 15. Bxf4 {[%clk 0:02:06.2]}
15... Qd7 {[%clk 0:02:46.3]} 16. Qc2 {[%clk 0:01:59.6]} 16... Rad8 {[%clk
0:02:41.1]} 17. Rad1 {[%clk 0:01:58.2]} 17... Ng5 {[%clk 0:01:53.6]} 18. Bxg5
{[%clk 0:01:43.7]} 18... fxg5 {[%clk 0:01:54.5]} 19. Rxf8+ {[%clk 0:01:36.3]}
19... Bxf8 {[%clk 0:01:43.7]} 20. Ng4 {[%clk 0:01:26.1]} 20... Bg7 {[%clk
0:01:43.4]} 21. Kh1 {[%clk 0:01:16]} 21... h5 {[%clk 0:01:39.8]} 22. Nh2 {[%clk
0:01:08.2]} 22... g4 {[%clk 0:01:35.6]} 23. hxg4 {[%clk 0:00:54.3]} 23... hxg4
{[%clk 0:01:36.5]} 24. Qf2 {[%clk 0:00:26.9]} 24... Bd4 {[%clk 0:01:06]} 25. Qh4
{[%clk 0:00:17.9]} 25... Kg7 {[%clk 0:01:06]} 26. e5 {[%clk 0:00:09.4]} 26...
Bxe5 {[%clk 0:00:57.8]} 27. Qxg4 {[%clk 0:00:08.1]} 27... Qxg4 {[%clk
0:00:50.1]} 28. Nxg4 {[%clk 0:00:09]} 28... Rh8+ {[%clk 0:00:50.3]} 29. Kg1
{[%clk 0:00:08.9]} 29... Bd4+ {[%clk 0:00:51]} 30. Kf1 {[%clk 0:00:09.2]} 30...
Rf8+ {[%clk 0:00:51.8]} 31. Ke2 {[%clk 0:00:09.5]} 31... Bc8 {[%clk 0:00:52.6]}
32. Ne3 {[%clk 0:00:07.8]} 32... Re8 {[%clk 0:00:41.3]} 33. Ne4 {[%clk
0:00:07.5]} 33... Bf5 {[%clk 0:00:37.7]} 34. Nxf5+ {[%clk 0:00:07.1]} 34... gxf5
{[%clk 0:00:37.3]} 35. Kf3 {[%clk 0:00:07.5]} 35... fxe4+ {[%clk 0:00:37.6]} 36.
dxe4 {[%clk 0:00:08.4]} 36... Kf6 {[%clk 0:00:35.7]} 37. Rh1 {[%clk 0:00:07.8]}
37... Rf8 {[%clk 0:00:32.6]} 38. Rh6+ {[%clk 0:00:07.9]} 38... Ke5+ {[%clk
0:00:33]} 39. Ke2 {[%clk 0:00:07.8]} 39... Kxe4 {[%clk 0:00:31.7]} 40. Rh4+
{[%clk 0:00:07.2]} 40... Rf4 {[%clk 0:00:30.9]} 41. Rh6 {[%clk 0:00:06.8]} 41...
Rf2+ {[%clk 0:00:31.1]} 42. Ke1 {[%clk 0:00:06.3]} 42... Rxb2 {[%clk 0:00:31.5]}
43. Rxc6 {[%clk 0:00:06.6]} 43... Ke3 {[%clk 0:00:30.4]} 44. Re6+ {[%clk
0:00:06.1]} 44... Kd3 {[%clk 0:00:31.1]} 45. g4 {[%clk 0:00:06.1]} 45... Rb1#
{[%clk 0:00:31.4]} 0-1

[Event "Late-Titled-Tuesday-Blitz-October-17-2023"]
[Site "Chess.com"]
[Date "2023.10.17"]
[Round "6"]
[White "olawsson"]
[Black "NotFischer"]
[Result "0-1"]
[WhiteElo "2082"]
[BlackElo "2262"]
[TimeControl "180+1"]
[EndTime "15:06:23 PDT"]
[Termination "NotFischer won on time"]

1. d4 {[%clk 0:02:58.3]} 1... Nf6 {[%clk 0:02:53.4]} 2. c4 {[%clk 0:02:58]} 2...
e6 {[%clk 0:02:52.9]} 3. Nf3 {[%clk 0:02:57.5]} 3... d5 {[%clk 0:02:52.5]} 4.
Nc3 {[%clk 0:02:56.7]} 4... Be7 {[%clk 0:02:51.4]} 5. Bg5 {[%clk 0:02:56.1]}
5... Nbd7 {[%clk 0:02:49.9]} 6. e3 {[%clk 0:02:54.6]} 6... c6 {[%clk 0:02:49]}
7. Rc1 {[%clk 0:02:55.1]} 7... O-O {[%clk 0:02:48.2]} 8. Bd3 {[%clk 0:02:55]}
8... dxc4 {[%clk 0:02:46.3]} 9. Bxc4 {[%clk 0:02:55.9]} 9... b5 {[%clk
0:02:46.1]} 10. Bd3 {[%clk 0:02:55]} 10... Bb7 {[%clk 0:02:33.5]} 11. O-O {[%clk
0:02:52]} 11... b4 {[%clk 0:02:17.1]} 12. Na4 {[%clk 0:02:18.9]} 12... Rc8
{[%clk 0:02:00]} 13. Nc5 {[%clk 0:02:10.3]} 13... Nxc5 {[%clk 0:01:59.3]} 14.
dxc5 {[%clk 0:02:10.1]} 14... Qa5 {[%clk 0:01:58.8]} 15. Bb1 {[%clk 0:01:48.5]}
15... Ba6 {[%clk 0:01:36.8]} 16. Qc2 {[%clk 0:01:43.8]} 16... g6 {[%clk
0:01:32.8]} 17. Rfd1 {[%clk 0:01:41.6]} 17... Rfd8 {[%clk 0:01:29.8]} 18. Nd4
{[%clk 0:01:24.3]} 18... Rd5 {[%clk 0:01:23.5]} 19. Bh4 {[%clk 0:01:02.6]} 19...
Rxc5 {[%clk 0:01:04]} 20. Qb3 {[%clk 0:01:02.8]} 20... Rxc1 {[%clk 0:01:02.6]}
21. Rxc1 {[%clk 0:01:01.9]} 21... c5 {[%clk 0:01:01.9]} 22. Nf3 {[%clk
0:00:19.8]} 22... c4 {[%clk 0:01:01.4]} 23. Qd1 {[%clk 0:00:20]} 23... Rd8
{[%clk 0:00:59.8]} 24. Qc2 {[%clk 0:00:15.2]} 24... Qd5 {[%clk 0:00:49.3]} 25.
Nd4 {[%clk 0:00:14.7]} 25... e5 {[%clk 0:00:38.4]} 26. Nf3 {[%clk 0:00:14.2]}
26... Kg7 {[%clk 0:00:33.4]} 27. Bg3 {[%clk 0:00:14.3]} 27... Bd6 {[%clk
0:00:27.6]} 28. h3 {[%clk 0:00:14.7]} 28... e4 {[%clk 0:00:23.8]} 29. Bxd6
{[%clk 0:00:12.8]} 29... exf3 {[%clk 0:00:23.4]} 30. Be7 {[%clk 0:00:12.7]}
30... Rd7 {[%clk 0:00:23.1]} 31. Bxf6+ {[%clk 0:00:12.9]} 31... Kxf6 {[%clk
0:00:23.7]} 32. g3 {[%clk 0:00:12.2]} 32... Kg7 {[%clk 0:00:18.3]} 33. Qe4
{[%clk 0:00:11.6]} 33... Qxe4 {[%clk 0:00:16.7]} 34. Bxe4 {[%clk 0:00:11.1]}
34... Rd2 {[%clk 0:00:17.4]} 35. Bxf3 {[%clk 0:00:03.8]} 35... Rxb2 {[%clk
0:00:17.2]} 36. Bd5 {[%clk 0:00:02.1]} 36... c3 {[%clk 0:00:17.3]} 37. Bb3
{[%clk 0:00:02.4]} 37... Bb5 {[%clk 0:00:16.6]} 0-1

[Event "Late-Titled-Tuesday-Blitz-October-17-2023"]
[Site "Chess.com"]
[Date "2023.10.17"]
[Round "6"]
[White "Mikhal867"]
[Black "HanSchut"]
[Result "0-1"]
[WhiteElo "2421"]
[BlackElo "2326"]
[TimeControl "180+1"]
[EndTime "15:06:24 PDT"]
[Termination "HanSchut won on time"]

1. d4 {[%clk 0:02:47.2]} 1... Nf6 {[%clk 0:02:58.6]} 2. g3 {[%clk 0:02:42.6]}
2... d5 {[%clk 0:02:56.8]} 3. Bg2 {[%clk 0:02:42.4]} 3... g6 {[%clk 0:02:56.8]}
4. c4 {[%clk 0:02:40.9]} 4... Bg7 {[%clk 0:02:56.7]} 5. Nc3 {[%clk 0:02:40.2]}
5... dxc4 {[%clk 0:02:56.4]} 6. Nf3 {[%clk 0:02:39.1]} 6... O-O {[%clk
0:02:55.9]} 7. O-O {[%clk 0:02:38.8]} 7... c6 {[%clk 0:02:53.6]} 8. a4 {[%clk
0:02:32.9]} 8... h6 {[%clk 0:02:44.5]} 9. a5 {[%clk 0:02:30.3]} 9... Nd5 {[%clk
0:02:35.9]} 10. Qa4 {[%clk 0:02:17.8]} 10... Be6 {[%clk 0:02:35.3]} 11. Nd2
{[%clk 0:02:06.3]} 11... b5 {[%clk 0:02:17.8]} 12. axb6 {[%clk 0:02:00.7]} 12...
Nxb6 {[%clk 0:02:17.8]} 13. Qa5 {[%clk 0:01:49.7]} 13... Qxd4 {[%clk 0:02:10.2]}
14. Nf3 {[%clk 0:01:44.4]} 14... Qd8 {[%clk 0:02:02.1]} 15. Rd1 {[%clk
0:01:36.2]} 15... Nd5 {[%clk 0:02:02]} 16. Qa3 {[%clk 0:01:22.7]} 16... Qd6
{[%clk 0:01:50.8]} 17. Qa4 {[%clk 0:01:14]} 17... Nd7 {[%clk 0:01:40.9]} 18. Bf4
{[%clk 0:00:55.7]} 18... N7b6 {[%clk 0:01:28.2]} 19. Qa6 {[%clk 0:00:35.2]}
19... Qb4 {[%clk 0:01:12]} 20. Bd2 {[%clk 0:00:24]} 20... Nxc3 {[%clk
0:01:00.3]} 21. bxc3 {[%clk 0:00:23]} 21... Qb5 {[%clk 0:00:53.6]} 22. Qb7
{[%clk 0:00:19.3]} 22... Rfb8 {[%clk 0:00:42.5]} 23. Qxe7 {[%clk 0:00:18.5]}
23... Qh5 {[%clk 0:00:34.3]} 24. Rxa7 {[%clk 0:00:16.4]} 24... Nd5 {[%clk
0:00:31.4]} 25. Rxa8 {[%clk 0:00:15]} 25... Nxe7 {[%clk 0:00:30]} 26. Rxb8+
{[%clk 0:00:14.7]} 26... Kh7 {[%clk 0:00:30.9]} 27. Be3 {[%clk 0:00:10.4]} 27...
Nd5 {[%clk 0:00:30.4]} 28. Bd4 {[%clk 0:00:09.6]} 28... Nxc3 {[%clk 0:00:28.8]}
29. Bxc3 {[%clk 0:00:07.7]} 29... Bxc3 {[%clk 0:00:29.1]} 30. Rdd8 {[%clk
0:00:06.5]} 30... Bf6 {[%clk 0:00:27.6]} 31. Re8 {[%clk 0:00:03.6]} 31... c3
{[%clk 0:00:27.4]} 32. Ne1 {[%clk 0:00:02.6]} 32... Qf5 {[%clk 0:00:21.7]} 33.
e4 {[%clk 0:00:01.1]} 33... Qc5 {[%clk 0:00:13.9]} 0-1

[Event "Late-Titled-Tuesday-Blitz-October-17-2023"]
[Site "Chess.com"]
[Date "2023.10.17"]
[Round "6"]
[White "The_Machine04"]
[Black "zverr1"]
[Result "1-0"]
[WhiteElo "2705"]
[BlackElo "2515"]
[TimeControl "180+1"]
[EndTime "15:06:26 PDT"]
[Termination "The_Machine04 won on time"]

1. d4 {[%clk 0:03:00.9]} 1... Nf6 {[%clk 0:02:57.7]} 2. Nf3 {[%clk 0:03:00.8]}
2... g6 {[%clk 0:02:58.3]} 3. Nbd2 {[%clk 0:03:01.3]} 3... d5 {[%clk 0:02:57.5]}
4. e3 {[%clk 0:03:01.7]} 4... Bg7 {[%clk 0:02:57.9]} 5. b4 {[%clk 0:03:02.3]}
5... O-O {[%clk 0:02:53.1]} 6. c4 {[%clk 0:03:02.4]} 6... a5 {[%clk 0:02:51.1]}
7. b5 {[%clk 0:03:02.1]} 7... c5 {[%clk 0:02:48.9]} 8. dxc5 {[%clk 0:03:03]}
8... Ne4 {[%clk 0:02:43.9]} 9. Nxe4 {[%clk 0:03:03.1]} 9... Bxa1 {[%clk
0:02:37.3]} 10. cxd5 {[%clk 0:03:04]} 10... Bf5 {[%clk 0:02:32.9]} 11. Ng3
{[%clk 0:03:03.9]} 11... Bc3+ {[%clk 0:02:22]} 12. Bd2 {[%clk 0:03:04.1]} 12...
Bb4 {[%clk 0:02:18.4]} 13. Nxf5 {[%clk 0:03:03.4]} 13... gxf5 {[%clk 0:02:16.5]}
14. Bxb4 {[%clk 0:03:03.4]} 14... axb4 {[%clk 0:02:17.4]} 15. Bc4 {[%clk
0:03:03.8]} 15... Nd7 {[%clk 0:02:14.8]} 16. Qd4 {[%clk 0:03:03.7]} 16... Qc7
{[%clk 0:02:04.7]} 17. c6 {[%clk 0:03:03]} 17... Nb6 {[%clk 0:02:00.7]} 18. Bb3
{[%clk 0:02:57]} 18... Rad8 {[%clk 0:01:55.9]} 19. O-O {[%clk 0:02:38.7]} 19...
e6 {[%clk 0:01:47.3]} 20. Qxb4 {[%clk 0:02:01.2]} 20... Nxd5 {[%clk 0:01:44]}
21. Bxd5 {[%clk 0:01:57.1]} 21... Rxd5 {[%clk 0:01:44.9]} 22. Nd4 {[%clk
0:01:52.4]} 22... bxc6 {[%clk 0:01:07.5]} 23. Nxc6 {[%clk 0:01:53.3]} 23... Rd6
{[%clk 0:00:37.7]} 24. a4 {[%clk 0:01:49.7]} 24... Ra8 {[%clk 0:00:36.2]} 25.
Nd4 {[%clk 0:01:44.2]} 25... Rd5 {[%clk 0:00:29]} 26. Ra1 {[%clk 0:01:39.2]}
26... Qc5 {[%clk 0:00:28.3]} 27. Qxc5 {[%clk 0:01:38.7]} 27... Rxc5 {[%clk
0:00:29.2]} 28. g3 {[%clk 0:01:37.8]} 28... e5 {[%clk 0:00:27.6]} 29. Nxf5
{[%clk 0:01:37.8]} 29... Rxb5 {[%clk 0:00:28]} 30. Rc1 {[%clk 0:01:27.5]} 30...
Rbb8 {[%clk 0:00:23]} 31. Rc7 {[%clk 0:01:20.6]} 31... Rf8 {[%clk 0:00:17.1]}
32. Rc4 {[%clk 0:01:17]} 32... Ra6 {[%clk 0:00:15.4]} 33. Kg2 {[%clk 0:01:07.3]}
33... h6 {[%clk 0:00:14.1]} 34. a5 {[%clk 0:01:03.6]} 34... Kh7 {[%clk
0:00:13.1]} 35. Rc5 {[%clk 0:01:01.9]} 35... Re8 {[%clk 0:00:12.4]} 36. g4
{[%clk 0:00:56]} 36... Kg6 {[%clk 0:00:10]} 37. Kg3 {[%clk 0:00:50.9]} 37... h5
{[%clk 0:00:10]} 38. h3 {[%clk 0:00:51.3]} 38... hxg4 {[%clk 0:00:10]} 39. hxg4
{[%clk 0:00:52.2]} 39... Kf6 {[%clk 0:00:09.5]} 40. Rb5 {[%clk 0:00:49.3]} 40...
Ree6 {[%clk 0:00:08.6]} 41. Rb8 {[%clk 0:00:45.2]} 41... Rxa5 {[%clk 0:00:06.6]}
42. Rh8 {[%clk 0:00:44.9]} 42... e4 {[%clk 0:00:03.8]} 43. Kf4 {[%clk
0:00:43.5]} 43... Rxf5+ {[%clk 0:00:02.2]} 44. gxf5 {[%clk 0:00:44.2]} 44... Re8
{[%clk 0:00:01.8]} 45. Rxe8 {[%clk 0:00:38.8]} 45... Kg7 {[%clk 0:00:02.1]} 46.
Rxe4 {[%clk 0:00:37.3]} 1-0

[Event "Late-Titled-Tuesday-Blitz-October-17-2023"]
[Site "Chess.com"]
[Date "2023.10.17"]
[Round "6"]
[White "Baku_Boulevard"]
[Black "DanielDardha2005"]
[Result "1-0"]
[WhiteElo "3018"]
[BlackElo "2897"]
[TimeControl "180+1"]
[EndTime "15:06:30 PDT"]
[Termination "Baku_Boulevard won by checkmate"]

1. e4 {[%clk 0:03:00.9]} 1... c5 {[%clk 0:02:58.1]} 2. c3 {[%clk 0:02:59.8]}
2... e5 {[%clk 0:02:51.2]} 3. Nf3 {[%clk 0:02:58.6]} 3... Nc6 {[%clk 0:02:48.4]}
4. Bc4 {[%clk 0:02:53.5]} 4... Be7 {[%clk 0:02:35.9]} 5. d4 {[%clk 0:02:53]}
5... cxd4 {[%clk 0:02:30.2]} 6. cxd4 {[%clk 0:02:53.7]} 6... exd4 {[%clk
0:02:13.3]} 7. Qb3 {[%clk 0:02:53.3]} 7... Na5 {[%clk 0:02:07.2]} 8. Bxf7+
{[%clk 0:02:36.7]} 8... Kf8 {[%clk 0:02:06.8]} 9. Qb5 {[%clk 0:02:09.2]} 9...
Kxf7 {[%clk 0:01:49.5]} 10. Qd5+ {[%clk 0:02:09.3]} 10... Kf8 {[%clk 0:01:32.8]}
11. Ne5 {[%clk 0:02:06.5]} 11... Bb4+ {[%clk 0:01:31]} 12. Bd2 {[%clk
0:02:04.7]} 12... Bxd2+ {[%clk 0:01:21.5]} 13. Nxd2 {[%clk 0:02:05.6]} 13... Nh6
{[%clk 0:01:19.5]} 14. Qxd4 {[%clk 0:02:00.1]} 14... d6 {[%clk 0:01:12.3]} 15.
Nec4 {[%clk 0:01:56.3]} 15... Nf7 {[%clk 0:01:08.1]} 16. O-O {[%clk 0:01:54.7]}
16... Be6 {[%clk 0:01:06.1]} 17. Rac1 {[%clk 0:01:41.1]} 17... Nc6 {[%clk
0:00:59.8]} 18. Qe3 {[%clk 0:01:40.2]} 18... Rc8 {[%clk 0:00:48.6]} 19. Rfd1
{[%clk 0:01:35.1]} 19... Qf6 {[%clk 0:00:44.2]} 20. Nf3 {[%clk 0:01:27.4]} 20...
Bxc4 {[%clk 0:00:41.2]} 21. Rxc4 {[%clk 0:01:27.2]} 21... g6 {[%clk 0:00:38.9]}
22. Qb3 {[%clk 0:01:01.6]} 22... Kg7 {[%clk 0:00:33.7]} 23. Qxb7 {[%clk
0:00:58.6]} 23... Na5 {[%clk 0:00:29.4]} 24. Qxc8 {[%clk 0:00:59]} 24... Rxc8
{[%clk 0:00:29.4]} 25. Rxc8 {[%clk 0:00:59.9]} 25... Qxb2 {[%clk 0:00:29.2]} 26.
Rc7 {[%clk 0:01:00.2]} 26... h6 {[%clk 0:00:19.1]} 27. h3 {[%clk 0:00:58.4]}
27... Qe2 {[%clk 0:00:14.8]} 28. Rxd6 {[%clk 0:00:54.2]} 28... Qxe4 {[%clk
0:00:05.8]} 29. Rdd7 {[%clk 0:00:54.3]} 29... Qf4 {[%clk 0:00:04.1]} 30. Nd4
{[%clk 0:00:44.1]} 30... Kg8 {[%clk 0:00:01.7]} 31. Rc8+ {[%clk 0:00:31.4]}
31... Kh7 {[%clk 0:00:01.2]} 32. Ne6 {[%clk 0:00:26.8]} 32... Qf6 {[%clk
0:00:01.1]} 33. Nd8 {[%clk 0:00:24.5]} 33... Qa1+ {[%clk 0:00:01.4]} 34. Kh2
{[%clk 0:00:24.9]} 34... Qe5+ {[%clk 0:00:01.6]} 35. g3 {[%clk 0:00:25.5]} 35...
h5 {[%clk 0:00:01.9]} 36. Nxf7 {[%clk 0:00:24.7]} 36... Qe2 {[%clk 0:00:02.2]}
37. Ng5+ {[%clk 0:00:17.6]} 37... Kh6 {[%clk 0:00:02.5]} 38. Rf7 {[%clk
0:00:18.3]} 38... Kxg5 {[%clk 0:00:02.3]} 39. h4+ {[%clk 0:00:18.9]} 39... Kh6
{[%clk 0:00:01.4]} 40. Rh8# {[%clk 0:00:19.1]} 1-0

[Event "Late-Titled-Tuesday-Blitz-October-17-2023"]
[Site "Chess.com"]
[Date "2023.10.17"]
[Round "6"]
[White "ToddBryant"]
[Black "Vigg-Sama"]
[Result "0-1"]
[WhiteElo "2311"]
[BlackElo "2205"]
[TimeControl "180+1"]
[EndTime "15:06:34 PDT"]
[Termination "Vigg-Sama won by checkmate"]

1. e4 {[%clk 0:03:00.9]} 1... e5 {[%clk 0:02:58.7]} 2. f4 {[%clk 0:03:00.7]}
2... exf4 {[%clk 0:02:57.2]} 3. Nf3 {[%clk 0:03:01.1]} 3... Nf6 {[%clk
0:02:57.1]} 4. Nc3 {[%clk 0:03:01.4]} 4... d5 {[%clk 0:02:53.7]} 5. exd5 {[%clk
0:03:02.3]} 5... Nxd5 {[%clk 0:02:49]} 6. Nxd5 {[%clk 0:03:03.2]} 6... Qxd5
{[%clk 0:02:48.8]} 7. d4 {[%clk 0:03:04.1]} 7... g5 {[%clk 0:02:45.7]} 8. Ne5
{[%clk 0:02:13.6]} 8... Nc6 {[%clk 0:02:17.5]} 9. Bc4 {[%clk 0:01:57.5]} 9...
Qe4+ {[%clk 0:02:17.5]} 10. Kf2 {[%clk 0:01:55.7]} 10... Be6 {[%clk 0:01:31.5]}
11. Re1 {[%clk 0:01:24.9]} 11... Qxd4+ {[%clk 0:01:28.8]} 12. Qxd4 {[%clk
0:01:21.8]} 12... Nxd4 {[%clk 0:01:29.1]} 13. c3 {[%clk 0:01:20.8]} 13... Nc2
{[%clk 0:01:25]} 14. Nxf7 {[%clk 0:01:14.7]} 14... Nxe1 {[%clk 0:01:13.1]} 15.
Bxe6 {[%clk 0:01:10.1]} 15... Nc2 {[%clk 0:00:56]} 16. Rb1 {[%clk 0:01:00.4]}
16... Bc5+ {[%clk 0:00:55]} 17. Ke2 {[%clk 0:00:48.3]} 17... Ke7 {[%clk
0:00:55.3]} 18. Bb3 {[%clk 0:00:48.8]} 18... Rhe8 {[%clk 0:00:45.2]} 19. Nh6
{[%clk 0:00:28.3]} 19... Ne3 {[%clk 0:00:40.2]} 20. Bxe3 {[%clk 0:00:26.4]}
20... Bxe3 {[%clk 0:00:39.6]} 21. Ng4 {[%clk 0:00:21.3]} 21... h5 {[%clk
0:00:35.2]} 22. Ne5 {[%clk 0:00:15.7]} 22... Rad8 {[%clk 0:00:28.1]} 23. Nd3
{[%clk 0:00:15.6]} 23... Kf6 {[%clk 0:00:24.8]} 24. Rd1 {[%clk 0:00:14.3]} 24...
c5 {[%clk 0:00:20.1]} 25. Bc4 {[%clk 0:00:13.5]} 25... a6 {[%clk 0:00:20.1]} 26.
a4 {[%clk 0:00:13.4]} 26... Rb8 {[%clk 0:00:19.7]} 27. Kf3 {[%clk 0:00:12]}
27... b5 {[%clk 0:00:19.3]} 28. axb5 {[%clk 0:00:11.9]} 28... axb5 {[%clk
0:00:20.2]} 29. Bd5 {[%clk 0:00:12]} 29... Rbd8 {[%clk 0:00:19.1]} 30. Be4
{[%clk 0:00:12.1]} 30... c4 {[%clk 0:00:18.5]} 31. Nf2 {[%clk 0:00:09]} 31...
Rxd1 {[%clk 0:00:19.4]} 32. Nxd1 {[%clk 0:00:08.7]} 32... g4+ {[%clk 0:00:19.9]}
33. Ke2 {[%clk 0:00:07.4]} 33... Rxe4 {[%clk 0:00:20.6]} 34. Nf2 {[%clk
0:00:05.5]} 34... Bxf2+ {[%clk 0:00:20.7]} 35. Kxf2 {[%clk 0:00:06.4]} 35... g3+
{[%clk 0:00:20.4]} 36. Kf3 {[%clk 0:00:06.7]} 36... Re3+ {[%clk 0:00:20.1]} 37.
Kxf4 {[%clk 0:00:07.6]} 37... Re2 {[%clk 0:00:20.9]} 38. Kxg3 {[%clk 0:00:07.7]}
38... Rxb2 {[%clk 0:00:21.3]} 39. Kf3 {[%clk 0:00:08.3]} 39... b4 {[%clk
0:00:21.8]} 40. Ke4 {[%clk 0:00:09.2]} 40... bxc3 {[%clk 0:00:22.2]} 41. Ke3
{[%clk 0:00:09.2]} 41... c2 {[%clk 0:00:22.8]} 42. Kd2 {[%clk 0:00:10.1]} 42...
c1=Q+ {[%clk 0:00:23.2]} 43. Kxc1 {[%clk 0:00:10.6]} 43... Rxg2 {[%clk
0:00:24.1]} 44. Kd1 {[%clk 0:00:11.2]} 44... Rxh2 {[%clk 0:00:25]} 45. Ke1
{[%clk 0:00:12.1]} 45... Rg2 {[%clk 0:00:25.9]} 46. Kf1 {[%clk 0:00:13]} 46...
Rg5 {[%clk 0:00:26.8]} 47. Ke1 {[%clk 0:00:13.9]} 47... h4 {[%clk 0:00:27.5]}
48. Kf1 {[%clk 0:00:14.8]} 48... h3 {[%clk 0:00:27.6]} 49. Ke1 {[%clk
0:00:15.7]} 49... h2 {[%clk 0:00:28.5]} 50. Kf1 {[%clk 0:00:16.6]} 50... c3
{[%clk 0:00:28.4]} 51. Ke1 {[%clk 0:00:17.5]} 51... Rg2 {[%clk 0:00:28.7]} 52.
Kf1 {[%clk 0:00:18.4]} 52... h1=Q# {[%clk 0:00:29.6]} 0-1